[Event "9th Amsterdam Science Park B 2019"]
[Site "Amsterdam"]
[Date "2019.07.09"]
[Round "4.6"]
[White "Beugelink, Erik"]
[Black "Roemersma, Aad"]
[Result "0-1"]
[ECO "A04"]
[WhiteElo "1963"]
[BlackElo "2029"]
[Annotator "NA"]
[PlyCount "131"]
[EventDate "2019.07.06"]
[EventType "swiss"]
[EventCountry "NED"]
[SourceTitle "playchess.com"]
[Source "ChessBase"]
[SourceQuality "1"]
[TimeControl "40/5400+30:1800+30"]

1. Nf3 {[%emt 0:04:42]} c5 {[%emt 0:01:06]} 2. c4 {[%emt 0:00:10]} Nf6 {[%emt 0:00:23]} 3. g3 {[%emt 0:00:50]} g6 {[%emt 0:01:00]} 4. b3 {[%emt 0:00:12]} Bg7 {[%emt 0:00:21]} 5. Bb2 {[%emt 0:00:04]} O-O {[%emt 0:00:19]} 6. Bg2 {[%emt 0:00:38]} Nc6 {[%emt 0:01:40]} 7. O-O {[%emt 0:00:34]} d6 {[%emt 0:01:39]} 8. d3 {[%emt 0:00:56]} Rb8 {[%emt 0:01:57]} 9. Nbd2 {[%emt 0:01:50]} e5 {[%emt 0:04:49]} 10. h3 {[%emt 0:06:02]} Nh5 {[%emt 0:02:38]} 11. e4 {[%emt 0:00:40]} Bh6 {[%emt 0:04:01]} 12. Nh4 {[%emt 0:02:26]} Be6 {[%emt 0:04:16]} 13. Kh2 {[%emt 0:06:19]} Ng7 {[%emt 0:02:04]} 14. Ndf3 {[%emt 0:08:40]} g5 {[%emt 0:03:33]} 15. Bc1 {[%emt 0:00:49]} f6 {[%emt 0:08:19]} 16. g4 {[%emt 0:01:21]} Qd7 {[%emt 0:03:16]} 17. Nf5 {[%emt 0:03:32]} Nxf5 {[%emt 0:00:20]} 18. gxf5 {[%emt 0:01:13]} Bf7 {[%emt 0:00:06]} 19. Nd2 {[%emt 0:08:01]} Nd4 {[%emt 0:03:35]} 20. Nb1 {[%emt 0:01:26]} Qe8 {[%emt 0:00:48]} 21. Bf3 {[%emt 0:00:33]} Bg7 {[%emt 0:02:58]} 22. Nc3 {[%emt 0:02:17]} a6 {[%emt 0:02:32]} 23. Be3 {[%emt 0:00:48]} b5 {[%emt 0:02:19]} 24. Rg1 {[%emt 0:02:46]} b4 {[%emt 0:06:58]} 25. Nd5 {[%emt 0:01:08]} Bxd5 {[%emt 0:00:21]} 26. cxd5 {[%emt 0:00:24]} Qb5 {[%emt 0:00:33]} 27. Bh5 {[%emt 0:04:46]} Rfc8 {[%emt 0:02:46]} 28. h4 {[%emt 0:00:16]} h6 {[%emt 0:00:05]} 29. hxg5 {[%emt 0:00:46]} hxg5 {[%emt 0:00:28]} 30. Qd2 {[%emt 0:02:07]} Rb7 {[%emt 0:03:10]} 31. Rg3 {[%emt 0:01:04]} Bh6 {[%emt 0:00:49]} 32. Rag1 {[%emt 0:00:22]} Rg7 {[%emt 0:00:26]} 33. Qd1 {[%emt 0:04:07]} Kf8 {[%emt 0:02:05]} 34. Bg6 {[%emt 0:01:58]} Ke7 {[%emt 0:02:27]} 35. Rh3 {[%emt 0:00:42]} Rh8 {[%emt 0:00:08]} 36. Rxg5 {[%emt 0:00:52]} fxg5 {[%emt 0:01:56]} 37. Bxg5+ {[%emt 0:00:06]} Bxg5 {[%emt 0:02:19]} 38. Rxh8 {[%emt 0:00:11]} Bf6 {[%emt 0:01:30]} 39. Rh3 {[%emt 0:11:36]} Qb8 {[%emt 0:02:48]} 40. Kg2 {[%emt 0:02:01]} Qf8 {[%emt 0:02:13]} 41. Kf1 {[%emt 0:31:21]} Kd8 {[%emt 0:30:32]} 42. Qc1 {[%emt 0:00:23]} Kc7 {[%emt 0:00:57]} 43. Ke1 {[%emt 0:04:22]} Kb6 {[%emt 0:00:47]} 44. Kd1 {[%emt 0:00:55]} Rg8 {[%emt 0:00:34]} 45. Qe3 {[%emt 0:04:39]} Rh8 {[%emt 0:00:55]} 46. Kc1 {[%emt 0:03:21]} Rxh3 {[%emt 0:00:52]} 47. Qxh3 {[%emt 0:00:02]} Qh8 {[%emt 0:00:18]} 48. Bh7 {[%emt 0:00:48]} Be7 {[%emt 0:07:47]} 49. Qh5 {[%emt 0:03:04]} Kc7 {[%emt 0:01:12]} 50. Kb2 {[%emt 0:01:56]} Qg7 {[%emt 0:04:34]} 51. Bg6 {[%emt 0:00:42]} Qf6 {[%emt 0:00:30]} 52. Qh2 {[%emt 0:03:50]} Qh4 {[%emt 0:02:24]} 53. Qg2 {[%emt 0:00:43]} Qg5 {[%emt 0:00:17]} 54. Qxg5 {[%emt 0:00:10]} Bxg5 {[%emt 0:00:06]} 55. Bh5 {[%emt 0:00:34]} Kd8 {[%emt 0:01:04]} 56. Bd1 {[%emt 0:01:02]} Ke7 {[%emt 0:02:03]} 57. a4 {[%emt 0:00:11]} Kf6 {[%emt 0:02:45]} 58. Bh5 {[%emt 0:00:30]} a5 {[%emt 0:00:36]} 59. Be8 {[%emt 0:00:39]} Bh4 {[%emt 0:00:33]} 60. Bh5 {[%emt 0:00:22]} Bxf2 {[%emt 0:00:32]} 61. Be8 {[%emt 0:00:08]} Kg5 {[%emt 0:00:33]} 62. Bd7 {[%emt 0:00:36]} Bh4 {[%emt 0:00:11]} 63. Bc8 {[%emt 0:00:35]} Kf4 {[%emt 0:00:36]} 64. Bd7 {[%emt 0:01:00]} Ke3 {[%emt 0:00:21]} 65. Bb5 {[%emt 0:00:06]} Kd2 {[%emt 0:00:55]} 66. Bc4 0-1

[Event "9th Amsterdam Science Park B 2019"]
[Site "Amsterdam"]
[Date "2019.07.09"]
[Round "4.7"]
[White "Adavatkar, Rugved"]
[Black "Smeets, Kobe"]
[Result "1-0"]
[ECO "A16"]
[WhiteElo "1678"]
[BlackElo "1530"]
[Annotator "NA"]
[PlyCount "127"]
[EventDate "2019.07.06"]
[EventType "swiss"]
[EventCountry "NED"]
[SourceTitle "playchess.com"]
[Source "ChessBase"]
[SourceQuality "1"]
[TimeControl "40/5400+30:1800+30"]

1. c4 {[%emt 0:00:00]} Nf6 {[%emt 0:00:00]} 2. Nc3 {[%emt 0:00:00]} g6 {[%emt 0:00:00]} 3. g3 {[%emt 0:00:00]} Bg7 {[%emt 0:00:00]} 4. Bg2 {[%emt 0:00:02]} O-O {[%emt 0:00:08]} 5. Nf3 {[%emt 0:00:10]} d6 {[%emt 0:00:15]} 6. O-O {[%emt 0:01:52]} e5 {[%emt 0:00:19]} 7. e4 {[%emt 0:00:08]} Nc6 {[%emt 0:00:39]} 8. d3 {[%emt 0:01:23]} h6 {[%emt 0:05:34]} 9. Be3 {[%emt 0:02:19]} Ng4 {[%emt 0:00:16]} 10. Qd2 {[%emt 0:02:09]} Nxe3 {[%emt 0:00:57]} 11. fxe3 {[%emt 0:00:32]} Be6 {[%emt 0:02:01]} 12. Rac1 {[%emt 0:00:44]} Ne7 {[%emt 0:02:41]} 13. Nh4 {[%emt 0:03:25]} c6 {[%emt 0:04:07]} 14. b3 {[%emt 0:02:01]} Qd7 {[%emt 0:05:09]} 15. d4 {[%emt 0:03:30]} Bh3 {[%emt 0:03:18]} 16. Rf2 {[%emt 0:02:18]} Bxg2 {[%emt 0:00:15]} 17. Kxg2 {[%emt 0:00:14]} Rad8 18. d5 {[%emt 0:01:25]} c5 {[%emt 0:09:53]} 19. Rcf1 {[%emt 0:02:05]} a6 {[%emt 0:03:33]} 20. a4 {[%emt 0:05:28]} Qg4 {[%emt 0:14:38]} 21. h3 {[%emt 0:02:48]} Qh5 {[%emt 0:08:25]} 22. Ne2 {[%emt 0:03:00]} f5 {[%emt 0:03:30]} 23. Qd3 {[%emt 0:02:12]} fxe4 {[%emt 0:05:21]} 24. Qxe4 {[%emt 0:00:18]} g5 {[%emt 0:03:08]} 25. Nf3 {[%emt 0:00:59]} Qg6 {[%emt 0:00:56]} 26. Nc3 {[%emt 0:01:33]} Qxe4 {[%emt 0:01:15]} 27. Nxe4 {[%emt 0:00:10]} Nf5 {[%emt 0:00:14]} 28. Re1 {[%emt 0:03:19]} Bf6 {[%emt 0:02:43]} 29. g4 {[%emt 0:01:11]} Ng7 {[%emt 0:00:13]} 30. Nfd2 {[%emt 0:00:44]} Be7 {[%emt 0:01:04]} 31. Ref1 {[%emt 0:00:17]} Rxf2+ {[%emt 0:00:27]} 32. Rxf2 {[%emt 0:00:08]} Rf8 {[%emt 0:00:24]} 33. Ng3 {[%emt 0:02:53]} Rxf2+ {[%emt 0:01:24]} 34. Kxf2 {[%emt 0:00:09]} Kf7 {[%emt 0:00:08]} 35. Nde4 {[%emt 0:01:44]} b6 {[%emt 0:03:16]} 36. Kf3 {[%emt 0:01:35]} Kg6 {[%emt 0:01:27]} 37. Nf2 {[%emt 0:00:29]} h5 {[%emt 0:03:39]} 38. e4 {[%emt 0:00:36]} h4 {[%emt 0:00:36]} 39. Nf5 {[%emt 0:01:27]} Bf8 {[%emt 0:06:40]} 40. Nd3 {[%emt 0:00:26]} Kf7 {[%emt 0:01:40]} 41. b4 {[%emt 0:31:17]} Kf6 {[%emt 0:31:32]} 42. Ne3 {[%emt 0:03:28]} Ne8 {[%emt 0:04:16]} 43. a5 {[%emt 0:01:21]} bxa5 {[%emt 0:00:47]} 44. b5 {[%emt 0:00:38]} axb5 {[%emt 0:00:54]} 45. cxb5 {[%emt 0:00:02]} Ke7 {[%emt 0:00:24]} 46. b6 {[%emt 0:00:22]} Kd7 {[%emt 0:00:40]} 47. Nc4 {[%emt 0:00:22]} a4 {[%emt 0:01:14]} 48. Ndb2 {[%emt 0:00:15]} a3 {[%emt 0:00:31]} 49. Nxa3 {[%emt 0:00:06]} Be7 {[%emt 0:00:47]} 50. Nb5 {[%emt 0:00:10]} Kc8 {[%emt 0:00:32]} 51. Nc4 {[%emt 0:00:20]} Kb7 {[%emt 0:00:17]} 52. Ke3 {[%emt 0:00:21]} Bf8 {[%emt 0:00:38]} 53. Kd3 {[%emt 0:00:17]} Be7 {[%emt 0:00:05]} 54. Kc3 {[%emt 0:00:20]} Bf8 {[%emt 0:00:12]} 55. Kb3 {[%emt 0:00:06]} Be7 {[%emt 0:00:04]} 56. Ka4 {[%emt 0:00:07]} Bf8 {[%emt 0:00:10]} 57. Ka5 {[%emt 0:00:38]} Be7 {[%emt 0:00:16]} 58. Nc3 {[%emt 0:00:07]} Nf6 {[%emt 0:00:30]} 59. Kb5 {[%emt 0:00:21]} Nd7 {[%emt 0:01:54]} 60. Na5+ {[%emt 0:00:16]} Ka8 {[%emt 0:02:04]} 61. Kc6 {[%emt 0:02:25]} Nb8+ {[%emt 0:01:16]} 62. Kc7 {[%emt 0:00:19]} c4 {[%emt 0:00:54]} 63. Nc6 {[%emt 0:00:20]} Na6+ {[%emt 0:00:47]} 64. Kc8 {[%emt 0:00:05]} 1-0

[Event "9th Amsterdam Science Park B 2019"]
[Site "Amsterdam"]
[Date "2019.07.09"]
[Round "4.8"]
[White "Hofstee, Piet"]
[Black "Cohn, Samuel"]
[Result "0-1"]
[ECO "B44"]
[WhiteElo "1688"]
[BlackElo "1679"]
[Annotator "NA"]
[PlyCount "130"]
[EventDate "2019.07.06"]
[EventType "swiss"]
[EventCountry "NED"]
[SourceTitle "playchess.com"]
[Source "ChessBase"]
[SourceQuality "1"]
[TimeControl "40/5400+30:1800+30"]

1. e4 {[%emt 0:00:00]} c5 {[%emt 0:00:00]} 2. d4 {[%emt 0:00:00]} cxd4 {[%emt 0:00:00]} 3. Nf3 {[%emt 0:00:00]} Nc6 {[%emt 0:00:00]} 4. Nxd4 {[%emt 0:00:05]} e6 {[%emt 0:00:07]} 5. Be2 {[%emt 0:02:57]} Nf6 {[%emt 0:01:47]} 6. Nc3 {[%emt 0:01:56]} Qc7 {[%emt 0:03:00]} 7. O-O {[%emt 0:03:04]} a6 {[%emt 0:02:40]} 8. Be3 {[%emt 0:05:25]} Bb4 {[%emt 0:03:29]} 9. Nxc6 {[%emt 0:07:42]} Bxc3 {[%emt 0:12:56]} 10. bxc3 {[%emt 0:00:30]} bxc6 {[%emt 0:01:19]} 11. Qd4 {[%emt 0:07:04]} d5 {[%emt 0:04:57]} 12. exd5 {[%emt 0:03:43]} cxd5 {[%emt 0:01:29]} 13. Bf4 {[%emt 0:03:34]} Qe7 {[%emt 0:05:21]} 14. c4 {[%emt 0:08:51]} dxc4 {[%emt 0:16:47]} 15. Bf3 {[%emt 0:10:01]} Bb7 {[%emt 0:03:24]} 16. Bd6 {[%emt 0:11:57]} Qd7 {[%emt 0:00:34]} 17. Bxb7 {[%emt 0:01:12]} Qxb7 {[%emt 0:00:12]} 18. Qxc4 {[%emt 0:00:53]} Rc8 {[%emt 0:02:07]} 19. Rab1 {[%emt 0:05:13]} Qa8 {[%emt 0:19:31]} 20. Qa4+ {[%emt 0:04:01]} Nd7 {[%emt 0:00:27]} 21. Qh4 {[%emt 0:04:44]} f6 {[%emt 0:01:20]} 22. Rfd1 {[%emt 0:02:06]} Rxc2 {[%emt 0:05:36]} 23. Qh5+ {[%emt 0:07:47]} g6 {[%emt 0:00:23]} 24. Qg4 {[%emt 0:01:56]} Kf7 {[%emt 0:00:54]} 25. Bf4 {[%emt 0:05:11]} Rd8 {[%emt 0:05:14]} 26. Qh4 {[%emt 0:00:08]} h5 {[%emt 0:00:28]} 27. Qh3 {[%emt 0:00:18]} Qe4 {[%emt 0:01:55]} 28. Be3 {[%emt 0:00:02]} Rxa2 {[%emt 0:01:19]} 29. Qg3 {[%emt 0:01:12]} e5 {[%emt 0:02:23]} 30. h3 {[%emt 0:00:13]} Ra3 {[%emt 0:00:41]} 31. Ra1 {[%emt 0:01:07]} Rxa1 {[%emt 0:00:33]} 32. Rxa1 {[%emt 0:00:02]} h4 {[%emt 0:01:22]} 33. Qg4 {[%emt 0:00:24]} Qxg4 {[%emt 0:00:11]} 34. hxg4 {[%emt 0:00:02]} Ra8 {[%emt 0:00:35]} 35. Ra5 {[%emt 0:00:17]} Ke6 {[%emt 0:00:23]} 36. Kf1 {[%emt 0:00:26]} Nb8 {[%emt 0:02:36]} 37. Ke2 {[%emt 0:00:08]} Nc6 {[%emt 0:00:15]} 38. Ra4 {[%emt 0:00:57]} g5 {[%emt 0:00:44]} 39. Kd3 {[%emt 0:00:23]} Kd5 {[%emt 0:01:00]} 40. Kc3 {[%emt 0:00:34]} Rc8 {[%emt 0:00:44]} 41. Kd3 {[%emt 0:30:33]} Rb8 {[%emt 0:06:18]} 42. Kc3 {[%emt 0:00:00]} a5 {[%emt 0:00:16]} 43. Kc2 {[%emt 0:00:00]} Nb4+ {[%emt 0:02:37]} 44. Kd2 {[%emt 0:00:00]} Rb5 {[%emt 0:00:18]} 45. Kc3 {[%emt 0:00:00]} Nc6 {[%emt 0:03:27]} 46. Ra2 {[%emt 0:00:00]} Nd4 {[%emt 0:02:32]} 47. Kd2 {[%emt 0:00:00]} Nb3+ {[%emt 0:04:00]} 48. Kd3 {[%emt 0:00:00]} Nc5+ {[%emt 0:01:48]} 49. Kc3 {[%emt 0:00:00]} Ne4+ {[%emt 0:01:24]} 50. Kd3 {[%emt 0:00:00]} Nd6 {[%emt 0:00:42]} 51. Ra4 {[%emt 0:00:00]} Kc6 {[%emt 0:00:59]} 52. Ra3 {[%emt 0:00:00]} Rd5+ {[%emt 0:01:09]} 53. Kc2 {[%emt 0:00:00]} Nb5 {[%emt 0:03:42]} 54. Ra4 {[%emt 0:00:00]} Nd4+ {[%emt 0:00:23]} 55. Kc3 {[%emt 0:00:00]} Kb5 {[%emt 0:00:34]} 56. Ra2 {[%emt 0:00:00]} Rc5+ {[%emt 0:01:37]} 57. Kd3 {[%emt 0:00:00]} Rc4 {[%emt 0:01:16]} 58. Bd2 {[%emt 0:00:00]} a4 {[%emt 0:00:26]} 59. Bc3 {[%emt 0:00:00]} Nb3 {[%emt 0:00:33]} 60. Rb2 {[%emt 0:01:15]} Rxg4 {[%emt 0:00:26]} 61. f3 {[%emt 0:00:46]} Rc4 {[%emt 0:01:07]} 62. Kc2 {[%emt 0:01:10]} f5 {[%emt 0:00:30]} 63. Kd3 {[%emt 0:00:40]} e4+ {[%emt 0:00:11]} 64. fxe4 {[%emt 0:00:17]} fxe4+ {[%emt 0:00:22]} 65. Kc2 {[%emt 0:00:10]} g4 {[%emt 0:00:18]} 0-1

[Event "9th Amsterdam Science Park B 2019"]
[Site "Amsterdam"]
[Date "2019.07.09"]
[Round "4.9"]
[White "Belozerova, Olga"]
[Black "Boons, Joris"]
[Result "0-1"]
[ECO "A48"]
[WhiteElo "1276"]
[BlackElo "1512"]
[Annotator "NA"]
[PlyCount "72"]
[EventDate "2019.07.06"]
[EventType "swiss"]
[EventCountry "NED"]
[SourceTitle "playchess.com"]
[Source "ChessBase"]
[SourceQuality "1"]
[TimeControl "40/5400+30:1800+30"]

1. d4 {[%emt 0:00:00]} Nf6 {[%emt 0:08:25]} 2. Nf3 {[%emt 0:00:00]} g6 {[%emt 0:00:23]} 3. Nc3 {[%emt 0:00:00]} d5 {[%emt 0:00:17]} 4. Bf4 {[%emt 0:00:24]} Bg7 {[%emt 0:00:17]} 5. Nb5 {[%emt 0:00:31]} Na6 {[%emt 0:00:06]} 6. e3 {[%emt 0:00:17]} O-O {[%emt 0:00:49]} 7. Bd3 {[%emt 0:01:09]} Nh5 {[%emt 0:07:43]} 8. Be5 {[%emt 0:00:32]} f6 {[%emt 0:01:15]} 9. Bg3 {[%emt 0:00:55]} Nxg3 {[%emt 0:00:36]} 10. fxg3 {[%emt 0:02:45]} c6 {[%emt 0:00:07]} 11. Nc3 {[%emt 0:00:14]} Nc7 {[%emt 0:00:14]} 12. h4 {[%emt 0:00:42]} e5 {[%emt 0:00:08]} 13. dxe5 {[%emt 0:02:57]} fxe5 {[%emt 0:00:02]} 14. e4 {[%emt 0:05:37]} b5 {[%emt 0:02:48]} 15. Qe2 {[%emt 0:12:59]} b4 {[%emt 0:02:06]} 16. Na4 {[%emt 0:02:01]} Bg4 {[%emt 0:00:50]} 17. O-O-O {[%emt 0:02:41]} Qd6 {[%emt 0:03:09]} 18. Bc4 {[%emt 0:04:46]} Rad8 {[%emt 0:12:58]} 19. Qe3 {[%emt 0:08:24]} Kh8 {[%emt 0:05:31]} 20. exd5 {[%emt 0:06:35]} cxd5 {[%emt 0:01:22]} 21. Be2 {[%emt 0:05:00]} d4 {[%emt 0:08:13]} 22. Qb3 {[%emt 0:06:47]} Ne6 {[%emt 0:11:59]} 23. Qd3 {[%emt 0:06:43]} Bf5 {[%emt 0:03:35]} 24. Qb3 {[%emt 0:00:38]} Rc8 {[%emt 0:01:32]} 25. Bc4 {[%emt 0:01:02]} Nc5 {[%emt 0:11:31]} 26. Nxc5 {[%emt 0:02:59]} Bh6+ {[%emt 0:02:08]} 27. Nd2 {[%emt 0:01:14]} Qxc5 {[%emt 0:00:12]} 28. Bd3 {[%emt 0:01:41]} e4 {[%emt 0:00:58]} 29. g4 {[%emt 0:02:01]} exd3 {[%emt 0:01:27]} 30. gxf5 {[%emt 0:00:21]} Qxc2+ {[%emt 0:00:37]} 31. Qxc2 {[%emt 0:00:11]} Rxc2+ {[%emt 0:00:07]} 32. Kb1 {[%emt 0:00:08]} Rxd2 {[%emt 0:00:08]} 33. fxg6 {[%emt 0:00:04]} Rff2 {[%emt 0:00:29]} 34. gxh7 {[%emt 0:00:27]} Rxb2+ {[%emt 0:00:19]} 35. Ka1 {[%emt 0:00:02]} Rxa2+ {[%emt 0:00:02]} 36. Kb1 {[%emt 0:00:04]} Rfb2# {[%emt 0:00:02]} 0-1

[Event "9th Amsterdam Science Park B 2019"]
[Site "Amsterdam"]
[Date "2019.07.09"]
[Round "4.10"]
[White "Yung, Aeron"]
[Black "Van Duijl, Henri"]
[Result "0-1"]
[ECO "D09"]
[WhiteElo "1200"]
[BlackElo "1495"]
[Annotator "NA"]
[PlyCount "56"]
[EventDate "2019.07.06"]
[EventType "swiss"]
[EventCountry "NED"]
[SourceTitle "playchess.com"]
[Source "ChessBase"]
[SourceQuality "1"]
[TimeControl "40/5400+30:1800+30"]

1. d4 {[%emt 0:00:00]} d5 {[%emt 0:00:00]} 2. c4 {[%emt 0:00:00]} e5 {[%emt 0:00:14]} 3. dxe5 {[%emt 0:00:00]} d4 {[%emt 0:00:15]} 4. Nf3 {[%emt 0:00:00]} Nc6 {[%emt 0:00:45]} 5. g3 {[%emt 0:00:08]} Bf5 {[%emt 0:03:49]} 6. Bg2 {[%emt 0:02:37]} Qd7 {[%emt 0:02:59]} 7. Nbd2 {[%emt 0:02:57]} O-O-O {[%emt 0:06:07]} 8. O-O {[%emt 0:01:54]} f6 {[%emt 0:01:54]} 9. Qb3 {[%emt 0:05:17]} Bh3 {[%emt 0:08:27]} 10. exf6 {[%emt 0:04:25]} Bxg2 {[%emt 0:01:46]} 11. Kxg2 {[%emt 0:01:07]} Nxf6 {[%emt 0:01:05]} 12. Rd1 {[%emt 0:14:49]} h5 {[%emt 0:02:35]} 13. Ng5 {[%emt 0:10:43]} Re8 {[%emt 0:20:00]} 14. Ndf3 {[%emt 0:07:01]} Bc5 {[%emt 0:08:54]} 15. Qb5 {[%emt 0:09:31]} Qe7 {[%emt 0:06:24]} 16. Bd2 {[%emt 0:08:31]} a6 {[%emt 0:04:27]} 17. Qb3 {[%emt 0:04:50]} Ng4 {[%emt 0:05:04]} 18. Re1 Nge5 {[%emt 0:04:43]} 19. Nxe5 {[%emt 0:07:07]} Nxe5 {[%emt 0:02:04]} 20. Ne4 {[%emt 0:01:35]} h4 {[%emt 0:02:56]} 21. Bg5 {[%emt 0:04:33]} h3+ {[%emt 0:00:29]} 22. Kf1 {[%emt 0:02:32]} Qf8 {[%emt 0:00:21]} 23. Nxc5 {[%emt 0:00:16]} Qxc5 {[%emt 0:00:34]} 24. Rad1 {[%emt 0:01:13]} Rhf8 {[%emt 0:01:21]} 25. f4 {[%emt 0:00:44]} Ng4 {[%emt 0:01:45]} 26. Kg1 {[%emt 0:03:08]} Ne3 {[%emt 0:03:02]} 27. Rd3 {[%emt 0:00:45]} Qc6 {[%emt 0:00:31]} 28. Rxe3 {[%emt 0:01:13]} Qg2# {[%emt 0:00:22]} 0-1

[Event "9th Amsterdam Science Park B 2019"]
[Site "Amsterdam"]
[Date "2019.07.10"]
[Round "5.1"]
[White "Van der Eyk, Dick"]
[Black "Dambrink, Wouter"]
[Result "0-1"]
[ECO "A34"]
[WhiteElo "1949"]
[BlackElo "1931"]
[Annotator "NA"]
[PlyCount "50"]
[EventDate "2019.07.06"]
[EventType "swiss"]
[EventCountry "NED"]
[SourceTitle "playchess.com"]
[Source "ChessBase"]
[SourceQuality "1"]
[TimeControl "40/5400+30:1800+30"]

1. c4 {[%emt 0:00:00]} c5 {[%emt 0:00:25]} 2. Nc3 {[%emt 0:00:00]} Nf6 {[%emt 0:00:09]} 3. g3 {[%emt 0:01:27]} d5 {[%emt 0:00:19]} 4. cxd5 {[%emt 0:00:09]} Nxd5 {[%emt 0:00:07]} 5. Bg2 {[%emt 0:00:18]} Nc7 {[%emt 0:00:17]} 6. Nf3 {[%emt 0:00:28]} Nc6 {[%emt 0:00:14]} 7. O-O {[%emt 0:00:42]} e5 {[%emt 0:00:18]} 8. d3 {[%emt 0:00:27]} Be7 {[%emt 0:00:10]} 9. Be3 {[%emt 0:02:50]} O-O {[%emt 0:00:51]} 10. Rc1 {[%emt 0:03:24]} Bd7 {[%emt 0:01:18]} 11. Re1 {[%emt 0:17:35]} Rc8 {[%emt 0:02:54]} 12. b3 {[%emt 0:06:56]} Ne6 {[%emt 0:06:13]} 13. Nd5 {[%emt 0:06:27]} Bd6 {[%emt 0:05:31]} 14. Nd2 {[%emt 0:16:27]} f5 {[%emt 0:07:28]} 15. Nc4 {[%emt 0:01:40]} Bb8 {[%emt 0:02:01]} 16. a4 {[%emt 0:08:54]} f4 {[%emt 0:05:22]} 17. Bd2 {[%emt 0:01:31]} Ncd4 {[%emt 0:04:02]} 18. Be4 {[%emt 0:05:31]} f3 {[%emt 0:13:19]} 19. exf3 {[%emt 0:02:59]} Bc6 {[%emt 0:04:28]} 20. Nce3 {[%emt 0:03:33]} Ng5 {[%emt 0:02:58]} 21. Kg2 {[%emt 0:04:24]} Qd7 {[%emt 0:05:08]} 22. g4 {[%emt 0:05:54]} Ngxf3 {[%emt 0:06:22]} 23. Rh1 {[%emt 0:06:22]} Qf7 {[%emt 0:12:33]} 24. Nf5 {[%emt 0:01:37]} Nxf5 {[%emt 0:00:32]} 25. gxf5 {[%emt 0:00:08]} Nxd2 {[%emt 0:02:09]} 0-1

[Event "9th Amsterdam Science Park B 2019"]
[Site "Amsterdam"]
[Date "2019.07.10"]
[Round "5.2"]
[White "Gutmann, Alois"]
[Black "Duson, Robin"]
[Result "0-1"]
[ECO "A00"]
[WhiteElo "2036"]
[BlackElo "1936"]
[Annotator "NA"]
[PlyCount "72"]
[EventDate "2019.07.06"]
[EventType "swiss"]
[EventCountry "NED"]
[SourceTitle "playchess.com"]
[Source "ChessBase"]
[SourceQuality "1"]
[TimeControl "40/5400+30:1800+30"]

1. Nc3 {[%emt 0:00:00]} d5 {[%emt 0:00:00]} 2. e4 {[%emt 0:00:00]} d4 {[%emt 0:00:02]} 3. Nce2 {[%emt 0:00:00]} e5 {[%emt 0:00:09]} 4. Ng3 {[%emt 0:00:18]} Be6 {[%emt 0:00:18]} 5. Nf3 {[%emt 0:01:34]} f6 {[%emt 0:00:46]} 6. c3 {[%emt 0:01:11]} d3 {[%emt 0:07:07]} 7. Nxe5 {[%emt 0:00:14]} fxe5 {[%emt 0:02:39]} 8. Qh5+ {[%emt 0:00:05]} Bf7 {[%emt 0:04:55]} 9. Qxe5+ {[%emt 0:00:05]} Qe7 {[%emt 0:03:19]} 10. Qb5+ {[%emt 0:05:45]} c6 {[%emt 0:01:27]} 11. Qxd3 {[%emt 0:00:06]} Nd7 {[%emt 0:02:38]} 12. Qc2 {[%emt 0:06:06]} g6 {[%emt 0:06:26]} 13. d4 {[%emt 0:03:36]} Bg7 {[%emt 0:04:36]} 14. Be3 {[%emt 0:04:46]} Ngf6 {[%emt 0:01:46]} 15. Be2 {[%emt 0:00:28]} O-O {[%emt 0:08:23]} 16. h4 {[%emt 0:04:37]} c5 {[%emt 0:06:51]} 17. e5 {[%emt 0:32:45]} Nd5 {[%emt 0:01:31]} 18. Bg5 {[%emt 0:00:11]} Qe6 {[%emt 0:02:01]} 19. Qe4 {[%emt 0:04:21]} h5 {[%emt 0:09:13]} 20. O-O {[%emt 0:11:02]} Rfe8 {[%emt 0:06:51]} 21. Rac1 {[%emt 0:08:10]} Rac8 {[%emt 0:02:28]} 22. f4 {[%emt 0:02:06]} cxd4 {[%emt 0:02:46]} 23. cxd4 {[%emt 0:00:28]} Rxc1 {[%emt 0:00:50]} 24. Rxc1 {[%emt 0:00:03]} Qb6 {[%emt 0:00:37]} 25. Bc4 {[%emt 0:09:20]} N7f6 {[%emt 0:03:26]} 26. Qd3 {[%emt 0:00:43]} Ng4 {[%emt 0:00:58]} 27. Bb3 {[%emt 0:01:51]} Bf8 {[%emt 0:07:14]} 28. Ne4 {[%emt 0:00:47]} Be7 {[%emt 0:03:07]} 29. Bxe7 {[%emt 0:00:28]} Rxe7 {[%emt 0:00:14]} 30. Rc8+ {[%emt 0:00:42]} Kg7 {[%emt 0:00:24]} 31. Nd6 {[%emt 0:01:37]} Nxf4 {[%emt 0:00:33]} 32. Qd2 {[%emt 0:01:55]} Rxe5 {[%emt 0:02:20]} 33. Rc5 {[%emt 0:00:37]} Ne2+ {[%emt 0:02:26]} 34. Kh1 {[%emt 0:00:27]} Ng3+ 35. Kg1 Rxc5 {[%emt 0:00:26]} 36. Nxf7 {[%emt 0:00:32]} Rc1+ {[%emt 0:00:47]} 0-1